[Event "*** Titled Tuesday 3|2 Blitz"]
[Site "Chess.com"]
[Date "2016.10.04"]
[Round "8"]
[White "ChessWarrior7197"]
[Black "oskariot"]
[Result "1-0"]
[WhiteElo "2484"]
[BlackElo "2364"]
[TimeControl "180+2"]
[EndTime "12:39:37 PDT"]
[Termination "ChessWarrior7197 won by resignation"]

1. e4 {[%clk 0:03:01.9]} 1... c5 {[%clk 0:03:00.2]} 2. Nf3 {[%clk 0:03:02.7]}
2... d6 {[%clk 0:03:00]} 3. d4 {[%clk 0:03:03]} 3... cxd4 {[%clk 0:03:01.9]} 4.
Nxd4 {[%clk 0:03:04.9]} 4... Nf6 {[%clk 0:03:03.8]} 5. Nc3 {[%clk 0:03:06]} 5...
Nc6 {[%clk 0:03:05.7]} 6. f3 {[%clk 0:03:04.7]} 6... e5 {[%clk 0:03:06.1]} 7.
Nb3 {[%clk 0:03:04]} 7... Be7 {[%clk 0:03:05.9]} 8. Be3 {[%clk 0:03:04.8]} 8...
O-O {[%clk 0:03:07.2]} 9. Qd2 {[%clk 0:03:05.9]} 9... Be6 {[%clk 0:03:08.4]} 10.
Nd5 {[%clk 0:03:02]} 10... Bxd5 {[%clk 0:03:08.8]} 11. exd5 {[%clk 0:03:03.1]}
11... Nb8 {[%clk 0:03:10.2]} 12. Be2 {[%clk 0:03:02.7]} 12... Nbd7 {[%clk
0:03:11]} 13. c4 {[%clk 0:03:03.9]} 13... e4 {[%clk 0:02:59.3]} 14. f4 {[%clk
0:03:04.2]} 14... a5 {[%clk 0:02:45.6]} 15. O-O {[%clk 0:03:04.2]} 15... a4
{[%clk 0:02:45.7]} 16. Nd4 {[%clk 0:03:05.1]} 16... Nc5 {[%clk 0:02:47]} 17. Nf5
{[%clk 0:03:04.6]} 17... Nfd7 {[%clk 0:02:38.4]} 18. Nxe7+ {[%clk 0:03:04.6]}
18... Qxe7 {[%clk 0:02:39.6]} 19. Qc2 {[%clk 0:03:01.9]} 19... Qf6 {[%clk
0:02:30]} 20. g3 {[%clk 0:02:54.4]} 20... Rfc8 {[%clk 0:02:14.8]} 21. Rfd1
{[%clk 0:02:54.3]} 21... b5 {[%clk 0:02:11.1]} 22. Bd4 {[%clk 0:02:54.7]} 22...
Qg6 {[%clk 0:02:09]} 23. b3 {[%clk 0:02:48.8]} 23... b4 {[%clk 0:01:55.4]} 24.
Rdb1 {[%clk 0:02:31.3]} 24... h5 {[%clk 0:01:35.5]} 25. Bd1 {[%clk 0:02:26.3]}
25... h4 {[%clk 0:01:31.3]} 26. Qg2 {[%clk 0:02:21.6]} 26... axb3 {[%clk
0:01:10.4]} 27. axb3 {[%clk 0:02:21.7]} 27... Nd3 {[%clk 0:01:11.8]} 28. Bc2
{[%clk 0:02:15.2]} 28... N7c5 {[%clk 0:01:12.3]} 29. Bxd3 {[%clk 0:01:41.6]}
29... Nxd3 {[%clk 0:01:07.8]} 30. Rf1 {[%clk 0:01:18.5]} 30... f5 {[%clk
0:00:58.5]} 31. gxh4 {[%clk 0:01:05.7]} 31... Qxg2+ {[%clk 0:00:58]} 32. Kxg2
{[%clk 0:01:06.9]} 32... Rxa1 {[%clk 0:00:57.9]} 33. Rxa1 {[%clk 0:01:08.8]}
33... Nxf4+ {[%clk 0:00:58.6]} 34. Kf1 {[%clk 0:01:08.6]} 34... Nh5 {[%clk
0:00:45.1]} 35. Ra6 {[%clk 0:01:08.1]} 35... f4 {[%clk 0:00:41.8]} 36. Rxd6
{[%clk 0:01:07.9]} 36... Ra8 {[%clk 0:00:42.8]} 37. Rg6 {[%clk 0:01:06.1]} 37...
Ra2 {[%clk 0:00:28]} 38. Rg5 {[%clk 0:01:07]} 38... g6 {[%clk 0:00:18.1]} 39.
Rxg6+ {[%clk 0:01:06.1]} 39... Kf7 {[%clk 0:00:19.7]} 40. Rg5 {[%clk 0:01:07.3]}
40... Rd2 {[%clk 0:00:16.9]} 41. Rxh5 {[%clk 0:01:08.1]} 41... Rxd4 {[%clk
0:00:17.3]} 42. Rf5+ {[%clk 0:01:09.1]} 42... Kg6 {[%clk 0:00:18]} 43. Rxf4
{[%clk 0:01:11]} 43... Rd3 {[%clk 0:00:19.6]} 44. Rxe4 {[%clk 0:01:07.6]} 44...
Rxb3 {[%clk 0:00:21.1]} 45. Rd4 {[%clk 0:01:08.5]} 45... Rc3 {[%clk 0:00:21.4]}
46. d6 {[%clk 0:01:09.3]} 46... b3 {[%clk 0:00:20.7]} 47. d7 {[%clk 0:01:02.6]}
47... b2 {[%clk 0:00:21.6]} 48. Rd1 {[%clk 0:01:03.6]} 48... Rd3 {[%clk
0:00:14.6]} 49. Rb1 {[%clk 0:01:04.2]} 49... Rxd7 {[%clk 0:00:15.7]} 50. Rxb2
{[%clk 0:01:05.7]} 50... Rd1+ {[%clk 0:00:15.6]} 51. Ke2 {[%clk 0:01:04.5]}
51... Rc1 {[%clk 0:00:16.3]} 52. Kd3 {[%clk 0:01:05.7]} 52... Kf5 {[%clk
0:00:16.9]} 53. Rc2 {[%clk 0:01:06.8]} 53... Rd1+ {[%clk 0:00:17.8]} 54. Kc3
{[%clk 0:01:08.2]} 54... Ke4 {[%clk 0:00:17.4]} 55. Re2+ {[%clk 0:01:07.4]}
55... Kf3 {[%clk 0:00:18.1]} 56. Rd2 {[%clk 0:01:08.6]} 56... Rc1+ {[%clk
0:00:19.1]} 57. Rc2 {[%clk 0:01:09.4]} 57... Ra1 {[%clk 0:00:20.5]} 58. c5
{[%clk 0:01:10.8]} 58... Kg4 {[%clk 0:00:21.7]} 59. c6 {[%clk 0:01:11.9]} 59...
Kxh4 {[%clk 0:00:22.4]} 60. c7 {[%clk 0:01:12.7]} 60... Ra8 {[%clk 0:00:24]} 61.
Kd4 {[%clk 0:01:13.9]} 61... Kg5 {[%clk 0:00:24.9]} 62. c8=Q {[%clk 0:01:13.7]}
62... Rxc8 {[%clk 0:00:26.2]} 63. Rxc8 {[%clk 0:01:14.9]} 1-0

[Event "*** Titled Tuesday 3|2 Blitz"]
[Site "Chess.com"]
[Date "2016.10.04"]
[Round "8"]
[White "TomsKantans"]
[Black "Kubas1010"]
[Result "1-0"]
[WhiteElo "2475"]
[BlackElo "2454"]
[TimeControl "180+2"]
[EndTime "12:39:51 PDT"]
[Termination "TomsKantans won by resignation"]

1. e4 {[%clk 0:02:59.1]} 1... e5 {[%clk 0:02:59.6]} 2. Nf3 {[%clk 0:03:00.1]}
2... Nc6 {[%clk 0:03:00.7]} 3. d4 {[%clk 0:02:59.2]} 3... exd4 {[%clk
0:03:01.4]} 4. Nxd4 {[%clk 0:03:01.1]} 4... g6 {[%clk 0:03:02.9]} 5. Nc3 {[%clk
0:02:59.7]} 5... Bg7 {[%clk 0:03:01.6]} 6. Be3 {[%clk 0:03:01]} 6... Nf6 {[%clk
0:03:02.5]} 7. Be2 {[%clk 0:02:58.2]} 7... O-O {[%clk 0:03:02.7]} 8. f4 {[%clk
0:02:58.8]} 8... d6 {[%clk 0:02:29.6]} 9. Bf3 {[%clk 0:02:56.3]} 9... Bd7 {[%clk
0:02:29.1]} 10. O-O {[%clk 0:02:56.6]} 10... Re8 {[%clk 0:02:24.3]} 11. Re1
{[%clk 0:02:57.6]} 11... h5 {[%clk 0:02:15.3]} 12. h3 {[%clk 0:02:58.2]} 12...
Nxd4 {[%clk 0:02:13.5]} 13. Bxd4 {[%clk 0:02:58.8]} 13... Bc6 {[%clk 0:02:14.7]}
14. Qd2 {[%clk 0:02:57.2]} 14... Nd7 {[%clk 0:02:11.7]} 15. Bxg7 {[%clk
0:02:52.5]} 15... Kxg7 {[%clk 0:02:13.6]} 16. Rad1 {[%clk 0:02:52]} 16... Qh4
{[%clk 0:01:57.2]} 17. b4 {[%clk 0:02:39.8]} 17... a6 {[%clk 0:01:53.6]} 18. a3
{[%clk 0:02:34.3]} 18... Rad8 {[%clk 0:01:51.6]} 19. Kh2 {[%clk 0:02:30.8]}
19... Qf6 {[%clk 0:01:42.6]} 20. g3 {[%clk 0:02:23.7]} 20... Nf8 {[%clk
0:01:40.5]} 21. h4 {[%clk 0:02:13.9]} 21... Nd7 {[%clk 0:01:15.1]} 22. Re3
{[%clk 0:02:08.7]} 22... Re6 {[%clk 0:01:15.6]} 23. Ne2 {[%clk 0:02:00.9]} 23...
Nb6 {[%clk 0:01:15.1]} 24. Nd4 {[%clk 0:01:28]} 24... Ree8 {[%clk 0:01:13]} 25.
Nxc6 {[%clk 0:01:25]} 25... bxc6 {[%clk 0:01:14.9]} 26. Qc3 {[%clk 0:01:23.5]}
26... d5 {[%clk 0:00:56.8]} 27. e5 {[%clk 0:01:21.1]} 27... Qe6 {[%clk
0:00:57.4]} 28. Be2 {[%clk 0:01:17.5]} 28... Ra8 {[%clk 0:00:53]} 29. Qc5 {[%clk
0:01:11.4]} 29... Nd7 {[%clk 0:00:53.1]} 30. Qa5 {[%clk 0:01:12.3]} 30... c5
{[%clk 0:00:46.6]} 31. Qxc7 {[%clk 0:01:01.3]} 31... cxb4 {[%clk 0:00:39.9]} 32.
axb4 {[%clk 0:00:31.6]} 32... Rec8 {[%clk 0:00:40.5]} 33. Qd6 {[%clk 0:00:32.4]}
33... Rxc2 {[%clk 0:00:32.1]} 34. Rxd5 {[%clk 0:00:29.5]} 34... Qxd6 {[%clk
0:00:28.4]} 35. Rxd6 {[%clk 0:00:29]} 35... Nf8 {[%clk 0:00:28.3]} 36. Kh3
{[%clk 0:00:28]} 36... a5 {[%clk 0:00:28.6]} 37. b5 {[%clk 0:00:27.5]} 37... Ne6
{[%clk 0:00:29.3]} 38. Bf3 {[%clk 0:00:24.9]} 38... Rb8 {[%clk 0:00:29.3]} 39.
Bc6 {[%clk 0:00:25.7]} 39... Nc5 {[%clk 0:00:17.5]} 40. Rd5 {[%clk 0:00:18.2]}
40... Ne6 {[%clk 0:00:15.9]} 41. Rd7 {[%clk 0:00:18.7]} 41... Nc5 {[%clk
0:00:15.9]} 42. Ra7 {[%clk 0:00:19]} 42... a4 {[%clk 0:00:17.4]} 43. e6 {[%clk
0:00:19.3]} 43... Nxe6 {[%clk 0:00:13]} 44. Rxe6 {[%clk 0:00:20.2]} 44... Rd8
{[%clk 0:00:13.5]} 45. Re1 {[%clk 0:00:11.8]} 45... Rdd2 {[%clk 0:00:14.4]} 46.
Rh1 {[%clk 0:00:13.4]} 46... Rd4 {[%clk 0:00:15.5]} 47. Be8 {[%clk 0:00:12]}
47... Kf8 {[%clk 0:00:15.3]} 48. Bxf7 {[%clk 0:00:12.7]} 48... Rb4 {[%clk
0:00:14.1]} 49. Bxg6 {[%clk 0:00:13.6]} 49... Rd2 {[%clk 0:00:14.3]} 50. Bxh5
{[%clk 0:00:14.4]} 50... Rxb5 {[%clk 0:00:15.8]} 51. Kg4 {[%clk 0:00:15.3]} 1-0

[Event "*** Titled Tuesday 3|2 Blitz"]
[Site "Chess.com"]
[Date "2016.10.04"]
[Round "8"]
[White "ftorodent"]
[Black "biostatistician"]
[Result "1/2-1/2"]
[WhiteElo "2507"]
[BlackElo "2435"]
[TimeControl "180+2"]
[EndTime "12:40:07 PDT"]
[Termination "Game drawn - insufficient material"]

1. d4 {[%clk 0:03:01.9]} 1... Nf6 {[%clk 0:03:00.2]} 2. c4 {[%clk 0:03:02.3]}
2... g6 {[%clk 0:03:02.1]} 3. Nc3 {[%clk 0:03:02.7]} 3... Bg7 {[%clk 0:03:03.6]}
4. e4 {[%clk 0:03:03.4]} 4... d6 {[%clk 0:03:04.8]} 5. Nf3 {[%clk 0:03:03.4]}
5... O-O {[%clk 0:03:06.3]} 6. Be2 {[%clk 0:03:04.8]} 6... e5 {[%clk 0:03:07.3]}
7. O-O {[%clk 0:03:04.2]} 7... Nc6 {[%clk 0:03:07.9]} 8. d5 {[%clk 0:03:05.6]}
8... Ne7 {[%clk 0:03:09.1]} 9. a4 {[%clk 0:03:07.1]} 9... Nh5 {[%clk 0:03:07.6]}
10. Re1 {[%clk 0:03:07.5]} 10... f5 {[%clk 0:02:56.8]} 11. Ng5 {[%clk 0:03:07]}
11... Nf6 {[%clk 0:02:57.4]} 12. Bf3 {[%clk 0:03:07.9]} 12... fxe4 {[%clk
0:02:55.5]} 13. Ncxe4 {[%clk 0:03:03.7]} 13... Nxe4 {[%clk 0:02:55.3]} 14. Bxe4
{[%clk 0:03:00]} 14... Nf5 {[%clk 0:02:51.1]} 15. a5 {[%clk 0:02:55.2]} 15...
Nd4 {[%clk 0:02:49.3]} 16. Nxh7 {[%clk 0:02:31]} 16... Kxh7 {[%clk 0:01:59]} 17.
Qh5+ {[%clk 0:02:31.5]} 17... Kg8 {[%clk 0:01:59.9]} 18. Bxg6 {[%clk 0:02:32.3]}
18... Rf6 {[%clk 0:01:59.3]} 19. Qh7+ {[%clk 0:02:27.4]} 19... Kf8 {[%clk
0:01:59.9]} 20. Bh6 {[%clk 0:02:28.4]} 20... Rxg6 {[%clk 0:01:36.1]} 21. Qxg6
{[%clk 0:02:19.4]} 21... Qe7 {[%clk 0:01:35.4]} 22. f4 {[%clk 0:01:41.1]} 22...
Bf5 {[%clk 0:01:20.2]} 23. Qh5 {[%clk 0:01:34.2]} 23... Bxh6 {[%clk 0:01:11.1]}
24. Qxh6+ {[%clk 0:01:35.3]} 24... Qg7 {[%clk 0:01:12.2]} 25. Qxg7+ {[%clk
0:01:17.6]} 25... Kxg7 {[%clk 0:01:14.1]} 26. fxe5 {[%clk 0:00:49.1]} 26... Nc2
{[%clk 0:01:14.5]} 27. Rf1 {[%clk 0:00:50]} 27... Nxa1 {[%clk 0:01:14]} 28. Rxf5
{[%clk 0:00:50.6]} 28... dxe5 {[%clk 0:01:15.3]} 29. Rxe5 {[%clk 0:00:51.2]}
29... Kf7 {[%clk 0:01:16.3]} 30. Rf5+ {[%clk 0:00:36.7]} 30... Ke7 {[%clk
0:01:16.6]} 31. Re5+ {[%clk 0:00:35.4]} 31... Kd7 {[%clk 0:01:16.3]} 32. a6
{[%clk 0:00:28.9]} 32... bxa6 {[%clk 0:01:16.9]} 33. Re6 {[%clk 0:00:30.2]}
33... a5 {[%clk 0:01:14.5]} 34. Ra6 {[%clk 0:00:26.8]} 34... Nb3 {[%clk
0:01:14.5]} 35. h4 {[%clk 0:00:26.9]} 35... Rb8 {[%clk 0:01:07.4]} 36. Rxa7
{[%clk 0:00:26.1]} 36... Rb4 {[%clk 0:01:06.9]} 37. c5 {[%clk 0:00:26.3]} 37...
Nxc5 {[%clk 0:01:08]} 38. Rxa5 {[%clk 0:00:27.5]} 38... Nd3 {[%clk 0:01:04.8]}
39. Ra3 {[%clk 0:00:24.2]} 39... Nxb2 {[%clk 0:01:03.6]} 40. Rh3 {[%clk
0:00:24.3]} 40... Ke7 {[%clk 0:00:58.2]} 41. h5 {[%clk 0:00:23.8]} 41... Kf7
{[%clk 0:00:59.3]} 42. Rc3 {[%clk 0:00:20.7]} 42... Rc4 {[%clk 0:00:58.1]} 43.
Rb3 {[%clk 0:00:18]} 43... Rc2 {[%clk 0:00:52]} 44. Rg3 {[%clk 0:00:13.4]} 44...
Rd2 {[%clk 0:00:24.1]} 45. h6 {[%clk 0:00:12.5]} 45... Rxd5 {[%clk 0:00:25]} 46.
Rg7+ {[%clk 0:00:13.3]} 46... Kf6 {[%clk 0:00:26.3]} 47. g4 {[%clk 0:00:13.1]}
47... c5 {[%clk 0:00:20.7]} 48. Rb7 {[%clk 0:00:11.4]} 48... Nd3 {[%clk
0:00:20.5]} 49. h7 {[%clk 0:00:11.9]} 49... Rd8 {[%clk 0:00:21.2]} 50. Rd7
{[%clk 0:00:13.1]} 50... Rh8 {[%clk 0:00:19.2]} 51. Rxd3 {[%clk 0:00:14]} 51...
Rxh7 {[%clk 0:00:20.7]} 52. Kg2 {[%clk 0:00:13]} 52... c4 {[%clk 0:00:22]} 53.
Rd6+ {[%clk 0:00:13.2]} 53... Ke5 {[%clk 0:00:22.8]} 54. Rc6 {[%clk 0:00:14.1]}
54... Kd5 {[%clk 0:00:21.9]} 55. Rc8 {[%clk 0:00:15.5]} 55... Rh6 {[%clk
0:00:21.1]} 56. Kf3 {[%clk 0:00:13.3]} 56... Rc6 {[%clk 0:00:19.4]} 57. Rxc6
{[%clk 0:00:14.1]} 57... Kxc6 {[%clk 0:00:21.3]} 58. Ke3 {[%clk 0:00:14.3]}
58... Kd5 {[%clk 0:00:22.2]} 59. Kd2 {[%clk 0:00:14]} 59... Ke5 {[%clk 0:00:23]}
60. Kc3 {[%clk 0:00:15.1]} 60... Kf4 {[%clk 0:00:24.1]} 61. Kxc4 {[%clk
0:00:16.8]} 61... Kxg4 {[%clk 0:00:25.2]} 1/2-1/2

[Event "*** Titled Tuesday 3|2 Blitz"]
[Site "Chess.com"]
[Date "2016.10.04"]
[Round "8"]
[White "petrpalachev"]
[Black "Noukii"]
[Result "1/2-1/2"]
[WhiteElo "2415"]
[BlackElo "2605"]
[TimeControl "180+2"]
[EndTime "12:40:11 PDT"]
[Termination "Game drawn - insufficient material"]

1. e4 {[%clk 0:03:02]} 1... Nf6 {[%clk 0:02:59.8]} 2. d3 {[%clk 0:03:02.4]} 2...
e5 {[%clk 0:03:01]} 3. Nf3 {[%clk 0:03:03.1]} 3... Nc6 {[%clk 0:03:02.6]} 4. Be2
{[%clk 0:03:04.2]} 4... d5 {[%clk 0:03:04.1]} 5. Nbd2 {[%clk 0:03:04]} 5... g6
{[%clk 0:03:04.6]} 6. O-O {[%clk 0:03:04.4]} 6... Bg7 {[%clk 0:03:06.2]} 7. c3
{[%clk 0:03:05.9]} 7... a5 {[%clk 0:03:07.7]} 8. b3 {[%clk 0:03:03.2]} 8... O-O
{[%clk 0:03:08.2]} 9. a3 {[%clk 0:03:02.4]} 9... h6 {[%clk 0:03:05.7]} 10. Bb2
{[%clk 0:03:02.2]} 10... Be6 {[%clk 0:02:55.7]} 11. Qc2 {[%clk 0:03:01.2]} 11...
Nh5 {[%clk 0:02:50.8]} 12. Rfe1 {[%clk 0:02:57.7]} 12... f5 {[%clk 0:02:37.5]}
13. exf5 {[%clk 0:02:47]} 13... Bxf5 {[%clk 0:02:35.9]} 14. g3 {[%clk 0:02:27]}
14... Qf6 {[%clk 0:02:06.4]} 15. c4 {[%clk 0:01:54.7]} 15... d4 {[%clk
0:02:03.5]} 16. Ne4 {[%clk 0:01:55.1]} 16... Bxe4 {[%clk 0:02:03.3]} 17. dxe4
{[%clk 0:01:57]} 17... Rad8 {[%clk 0:02:02.8]} 18. Rad1 {[%clk 0:01:44.7]} 18...
Qf7 {[%clk 0:02:03.8]} 19. Rf1 {[%clk 0:01:41.2]} 19... Nf6 {[%clk 0:02:03.2]}
20. Ne1 {[%clk 0:01:40.4]} 20... g5 {[%clk 0:02:02.4]} 21. c5 {[%clk 0:01:23.7]}
21... Kh8 {[%clk 0:02:02.7]} 22. f3 {[%clk 0:01:05.7]} 22... Qg6 {[%clk
0:01:48]} 23. Bd3 {[%clk 0:00:41.7]} 23... Nd7 {[%clk 0:01:39.4]} 24. Ng2 {[%clk
0:00:42.4]} 24... Rf6 {[%clk 0:01:39.1]} 25. Rf2 {[%clk 0:00:42.2]} 25... Rdf8
{[%clk 0:01:40]} 26. Rdf1 {[%clk 0:00:43.8]} 26... Qe8 {[%clk 0:01:37.1]} 27.
Bb5 {[%clk 0:00:38.8]} 27... Qe6 {[%clk 0:01:37.6]} 28. Bxc6 {[%clk 0:00:39.8]}
28... Qxc6 {[%clk 0:01:37.4]} 29. b4 {[%clk 0:00:41.3]} 29... axb4 {[%clk
0:01:38.3]} 30. axb4 {[%clk 0:00:43.2]} 30... Qb5 {[%clk 0:01:38.8]} 31. Qd2
{[%clk 0:00:37.4]} 31... b6 {[%clk 0:01:34.7]} 32. cxb6 {[%clk 0:00:34.9]} 32...
Rxb6 {[%clk 0:01:36]} 33. f4 {[%clk 0:00:35.7]} 33... Rbf6 {[%clk 0:01:33]} 34.
fxe5 {[%clk 0:00:32]} 34... Nxe5 {[%clk 0:01:20.6]} 35. Rxf6 {[%clk 0:00:32.3]}
35... Rxf6 {[%clk 0:01:20]} 36. Rxf6 {[%clk 0:00:33.1]} 36... Bxf6 {[%clk
0:01:21.9]} 37. Ne1 {[%clk 0:00:33.2]} 37... Nc4 {[%clk 0:01:22]} 38. Qf2 {[%clk
0:00:26.1]} 38... Qb6 {[%clk 0:01:17.5]} 39. Nd3 {[%clk 0:00:22.5]} 39... Qe6
{[%clk 0:01:07.8]} 40. Bxd4 {[%clk 0:00:17]} 40... Bxd4 {[%clk 0:01:01.7]} 41.
Qxd4+ {[%clk 0:00:18.9]} 41... Kh7 {[%clk 0:01:03.4]} 42. Nc5 {[%clk 0:00:18]}
42... Qf7 {[%clk 0:01:02.2]} 43. Qd7 {[%clk 0:00:17.4]} 43... Qxd7 {[%clk
0:01:02.4]} 44. Nxd7 {[%clk 0:00:19.3]} 44... Kg6 {[%clk 0:01:04.1]} 45. Kf2
{[%clk 0:00:19.9]} 45... Kf7 {[%clk 0:01:05.7]} 46. Kf3 {[%clk 0:00:18.7]} 46...
Ke6 {[%clk 0:01:07.1]} 47. Nc5+ {[%clk 0:00:19.5]} 47... Kf6 {[%clk 0:01:07]}
48. Nd3 {[%clk 0:00:16.3]} 48... h5 {[%clk 0:01:05]} 49. h4 {[%clk 0:00:17.1]}
49... c6 {[%clk 0:01:00.2]} 50. hxg5+ {[%clk 0:00:07.6]} 50... Kxg5 {[%clk
0:01:02.1]} 51. Kg2 {[%clk 0:00:06.2]} 51... Nd2 {[%clk 0:01:00.8]} 52. Nf2
{[%clk 0:00:06.5]} 52... Kf6 {[%clk 0:00:58]} 53. Kh3 {[%clk 0:00:07.1]} 53...
Kg5 {[%clk 0:00:59.6]} 54. e5 {[%clk 0:00:07]} 54... Nf3 {[%clk 0:00:53.1]} 55.
e6 {[%clk 0:00:06.1]} 55... Kf6 {[%clk 0:00:54.3]} 56. Nd3 {[%clk 0:00:03.6]}
56... Kxe6 {[%clk 0:00:42.3]} 57. Nf4+ {[%clk 0:00:05.1]} 57... Kf5 {[%clk
0:00:40.4]} 58. Nxh5 {[%clk 0:00:07]} 58... Ng5+ {[%clk 0:00:41.4]} 59. Kg2
{[%clk 0:00:07.8]} 59... Ke4 {[%clk 0:00:43.1]} 60. Nf6+ {[%clk 0:00:08.5]}
60... Kd4 {[%clk 0:00:44.5]} 61. Nd7 {[%clk 0:00:08.9]} 61... Kd5 {[%clk
0:00:45.6]} 62. g4 {[%clk 0:00:08.7]} 62... Kc4 {[%clk 0:00:46.8]} 63. Ne5+
{[%clk 0:00:08.1]} 63... Kxb4 {[%clk 0:00:48.5]} 64. Nxc6+ {[%clk 0:00:09.2]}
64... Kc5 {[%clk 0:00:50.4]} 65. Ne5 {[%clk 0:00:10.3]} 65... Kd5 {[%clk
0:00:51.3]} 66. Nf3 {[%clk 0:00:11.5]} 66... Ne4 {[%clk 0:00:51.9]} 67. Kh3
{[%clk 0:00:12.9]} 67... Nf2+ {[%clk 0:00:52.5]} 68. Kh4 {[%clk 0:00:14]} 68...
Nxg4 {[%clk 0:00:54.4]} 69. Kxg4 {[%clk 0:00:15.8]} 1/2-1/2

[Event "*** Titled Tuesday 3|2 Blitz"]
[Site "Chess.com"]
[Date "2016.10.04"]
[Round "8"]
[White "dretch"]
[Black "Lukianoo"]
[Result "0-1"]
[WhiteElo "2639"]
[BlackElo "2740"]
[TimeControl "180+2"]
[EndTime "12:40:53 PDT"]
[Termination "Lukianoo won by resignation"]

1. d4 {[%clk 0:03:01.9]} 1... Nf6 {[%clk 0:02:56.2]} 2. c4 {[%clk 0:03:03.1]}
2... e6 {[%clk 0:02:56.7]} 3. Nc3 {[%clk 0:03:04.4]} 3... Bb4 {[%clk 0:02:53.7]}
4. Qc2 {[%clk 0:03:05.5]} 4... O-O {[%clk 0:02:52.5]} 5. e4 {[%clk 0:03:06.7]}
5... d5 {[%clk 0:02:51.3]} 6. e5 {[%clk 0:03:07.7]} 6... Ne4 {[%clk 0:02:51]} 7.
Bd3 {[%clk 0:03:09]} 7... c5 {[%clk 0:02:48.9]} 8. Nf3 {[%clk 0:03:10.2]} 8...
cxd4 {[%clk 0:02:47.4]} 9. Nxd4 {[%clk 0:03:12.1]} 9... Nc6 {[%clk 0:02:45.2]}
10. Nxc6 {[%clk 0:03:10.6]} 10... bxc6 {[%clk 0:02:47.1]} 11. O-O {[%clk
0:03:11.6]} 11... f5 {[%clk 0:02:42.5]} 12. exf6 {[%clk 0:03:08.9]} 12... Nxf6
{[%clk 0:02:39.3]} 13. Bg5 {[%clk 0:03:07.4]} 13... h6 {[%clk 0:02:37.6]} 14.
Bh4 {[%clk 0:03:08.5]} 14... Bd6 {[%clk 0:02:34.3]} 15. Kh1 {[%clk 0:03:08]}
15... Qc7 {[%clk 0:02:30.7]} 16. cxd5 {[%clk 0:02:44.3]} 16... exd5 {[%clk
0:02:26.7]} 17. Rac1 {[%clk 0:02:34.1]} 17... Bf4 {[%clk 0:02:13.6]} 18. Bg3
{[%clk 0:02:35.1]} 18... Bd7 {[%clk 0:02:04.5]} 19. Nb5 {[%clk 0:02:22]} 19...
Qb8 {[%clk 0:02:00.7]} 20. Nd4 {[%clk 0:02:22.8]} 20... Bxg3 {[%clk 0:01:50.7]}
21. fxg3 {[%clk 0:02:03.9]} 21... Ng4 {[%clk 0:01:51.2]} 22. Nxc6 {[%clk
0:01:52.8]} 22... Qd6 {[%clk 0:01:42.9]} 23. Nd4 {[%clk 0:01:08.9]} 23... Rxf1+
{[%clk 0:01:35.3]} 24. Bxf1 {[%clk 0:01:09.8]} 24... Rf8 {[%clk 0:01:32.9]} 25.
Nf3 {[%clk 0:01:10.1]} 25... Qb4 {[%clk 0:01:22.4]} 26. Qc3 {[%clk 0:00:49.5]}
26... Qb6 {[%clk 0:01:22.9]} 27. h3 {[%clk 0:00:41.5]} 27... Nf2+ {[%clk
0:01:22.8]} 28. Kh2 {[%clk 0:00:42.3]} 28... Rc8 {[%clk 0:01:16.2]} 29. Qd2
{[%clk 0:00:43]} 29... Rxc1 {[%clk 0:01:11.7]} 30. Qxc1 {[%clk 0:00:44.9]} 30...
Ne4 {[%clk 0:01:10.6]} 31. b3 {[%clk 0:00:43.2]} 31... Qf2 {[%clk 0:01:08]} 32.
Qe1 {[%clk 0:00:19.1]} 32... Qxa2 {[%clk 0:01:04.8]} 33. b4 {[%clk 0:00:20.2]}
33... Qb3 {[%clk 0:00:57.2]} 34. Ba6 {[%clk 0:00:18.5]} 34... Kh7 {[%clk
0:00:51.3]} 35. Bf1 {[%clk 0:00:09.8]} 35... Be8 {[%clk 0:00:44.7]} 36. Nd4
{[%clk 0:00:07.8]} 36... Qb2 {[%clk 0:00:41.3]} 37. Bd3 {[%clk 0:00:07.6]} 37...
Qxd4 {[%clk 0:00:39]} 38. Qe2 {[%clk 0:00:07.4]} 38... Qxb4 {[%clk 0:00:36.4]}
39. Qg4 {[%clk 0:00:07.6]} 39... Qd4 {[%clk 0:00:34.1]} 40. Bb1 {[%clk
0:00:06.5]} 40... Qe5 {[%clk 0:00:34.7]} 41. h4 {[%clk 0:00:06.5]} 41... Bh5
{[%clk 0:00:34.1]} 42. Qh3 {[%clk 0:00:07.8]} 42... Bg6 {[%clk 0:00:30.8]} 43.
Qg4 {[%clk 0:00:07.7]} 43... a5 {[%clk 0:00:30.2]} 44. Bc2 {[%clk 0:00:07.7]}
44... Bh5 {[%clk 0:00:24.3]} 45. Qh3 {[%clk 0:00:07.4]} 45... Qc3 {[%clk
0:00:25.1]} 46. Bxe4+ {[%clk 0:00:05.9]} 46... dxe4 {[%clk 0:00:25.5]} 47. Qf5+
{[%clk 0:00:07.4]} 47... Bg6 {[%clk 0:00:26.6]} 48. Qg4 {[%clk 0:00:07]} 48...
Qe5 {[%clk 0:00:26.3]} 49. Qd1 {[%clk 0:00:07]} 49... e3 {[%clk 0:00:26.3]} 50.
Qe2 {[%clk 0:00:07.9]} 50... a4 {[%clk 0:00:26.6]} 51. Kh3 {[%clk 0:00:08.8]}
51... a3 {[%clk 0:00:27.4]} 52. g4 {[%clk 0:00:10.2]} 52... a2 {[%clk
0:00:27.8]} 53. h5 {[%clk 0:00:10.1]} 53... Bb1 {[%clk 0:00:25.2]} 54. g5 {[%clk
0:00:09.8]} 54... hxg5 {[%clk 0:00:25]} 55. h6 {[%clk 0:00:10.4]} 55... a1=Q
{[%clk 0:00:24.9]} 56. hxg7 {[%clk 0:00:10.8]} 56... Qf5+ {[%clk 0:00:25.4]} 57.
g4 {[%clk 0:00:10.3]} 57... Qd3 {[%clk 0:00:19.8]} 58. g8=B+ {[%clk 0:00:07.9]}
58... Kh8 {[%clk 0:00:17.7]} 59. Qh2 {[%clk 0:00:06.9]} 59... e2+ {[%clk
0:00:16.4]} 60. Kg2+ {[%clk 0:00:07.9]} 60... Kxg8 {[%clk 0:00:17.5]} 61. Qb8+
{[%clk 0:00:08]} 61... Kf7 {[%clk 0:00:18.1]} 62. Qc7+ {[%clk 0:00:08.4]} 62...
Ke6 {[%clk 0:00:19.2]} 63. Qc6+ {[%clk 0:00:08.9]} 63... Ke5 {[%clk 0:00:20.2]}
64. Qc7+ {[%clk 0:00:09.8]} 64... Kd4 {[%clk 0:00:20.9]} 65. Qd6+ {[%clk
0:00:10.7]} 65... Kc4 {[%clk 0:00:19.4]} 66. Qc6+ {[%clk 0:00:10.8]} 66... Kb3
{[%clk 0:00:20.5]} 67. Qb6+ {[%clk 0:00:11.6]} 67... Kc2 {[%clk 0:00:21.5]} 68.
Qc5+ {[%clk 0:00:11.8]} 68... Qac3 {[%clk 0:00:22.5]} 0-1